fUSD/lending_fUSD_20250116
["ID","MTS","AMOUNT","RATE_DAILY","PERIOD"]
[349142336,1736987452834,-500.0,0.00043499,18]
[349142337,1736987452843,-500.0,0.00043499,18]
[349142338,1736987452860,-500.0,0.00043499,18]
[349142339,1736987452871,-500.0,0.00043499,18]
[349142340,1736987452880,-500.0,0.00043499,18]
[349142341,1736987452890,-500.0,0.00043499,18]
[349142342,1736987452900,-500.0,0.00043499,18]
[349142343,1736987452911,-500.0,0.00043499,18]
[349142344,1736987452920,-500.0,0.00043499,18]
[349142345,1736987452930,-500.0,0.00043499,18]
[349142346,1736987452939,-289.3,0.00043499,18]
[349142347,1736987452948,-500.0,0.00043499,18]
[349142348,1736987452958,-500.0,0.00043499,18]
[349142349,1736987452968,-500.0,0.00043499,18]
[349142350,1736987452978,-500.0,0.00043499,18]
[349142351,1736987452988,-559.89,0.00043499,18]
[349142352,1736987452998,-188.79,0.00043499,18]
[349142353,1736987453008,-500.0,0.00043499,18]
[349142354,1736987453018,-500.0,0.00043499,18]
[349142355,1736987453028,-211.26,0.00043499,18]
[349142356,1736987453037,-500.0,0.00043499,18]
[349142357,1736987453047,-500.0,0.00043499,18]
[349142358,1736987453056,-591.81,0.00043499,18]
[349142359,1736987453066,-500.0,0.00043499,18]
[349142360,1736987453078,-500.0,0.00043499,18]
[349142361,1736987453087,-500.0,0.00043499,18]
[349142362,1736987453097,-500.0,0.00043499,18]
[349142363,1736987453118,-500.0,0.00043499,18]
[349142364,1736987453128,-500.0,0.00043499,18]
[349142365,1736987453138,-500.0,0.00043499,18]
[349142366,1736987453147,-500.0,0.00043499,18]
[349142367,1736987453157,-500.0,0.00043499,18]
[349142368,1736987453167,-500.0,0.00043499,18]
[349142369,1736987453177,-500.0,0.00043499,18]
[349142370,1736987453186,-500.0,0.00043499,18]
[349142371,1736987453196,-500.0,0.00043499,18]
[349142372,1736987453205,-500.0,0.00043499,18]
[349142373,1736987453215,-150.73,0.00043499,18]
[349142374,1736987453224,-500.0,0.00043499,18]
[349142375,1736987453234,-500.0,0.00043499,18]
[349142376,1736987453243,-500.0,0.00043499,18]
[349142377,1736987453253,-500.0,0.00043499,18]
[349142378,1736987453263,-632.3,0.00043499,18]
[349142379,1736987453273,-345.23001131,0.00043499,18]
[349142380,1736987453301,-61.87998869,0.00043499,18]
[349142381,1736987453311,-500.0,0.00043499,18]
[349142382,1736987453320,-500.0,0.00043499,18]
[349142383,1736987453330,-500.0,0.00043499,18]
[349142384,1736987453340,-500.0,0.00043499,18]
[349142385,1736987453349,-500.0,0.00043499,18]
[349142386,1736987453371,-500.0,0.00043499,18]
[349142387,1736987453381,-500.0,0.00043499,18]
[349142388,1736987453391,-426.7,0.00043499,18]
[349142389,1736987453400,-565.9,0.00043499,18]
[349142390,1736987453409,-565.9,0.00043499,18]
[349142391,1736987453419,-565.9,0.00043499,18]
[349142392,1736987453428,-565.9,0.00043499,18]
[349142393,1736987453438,-565.9,0.00043499,18]
[349142394,1736987453498,-500.0,0.00043499,18]
[349142395,1736987453514,-565.9,0.00043499,18]
[349142396,1736987453524,-565.9,0.00043499,18]
[349142397,1736987453536,-565.9,0.00043499,18]
[349142398,1736987453545,-565.9,0.00043499,18]
[349142399,1736987453554,-565.9,0.00043499,18]
[349142400,1736987453563,-565.9,0.00043499,18]
[349142401,1736987453572,-565.9,0.00043499,18]
[349142402,1736987453582,-565.9,0.00043499,18]
[349142403,1736987453591,-565.9,0.00043499,18]
[349142404,1736987453600,-565.9,0.00043499,18]
[349142405,1736987453621,-565.9,0.00043499,18]
[349142406,1736987453631,-565.9,0.00043499,18]
[349142407,1736987453640,-565.9,0.00043499,18]
[349142408,1736987453650,-565.9,0.00043499,18]
[349142409,1736987453659,-565.9,0.00043499,18]
[349142410,1736987453670,-565.9,0.00043499,18]
[349142411,1736987453680,-500.0,0.00043499,18]
[349142412,1736987453689,-565.98,0.00043499,18]
[349142413,1736987453699,-500.0,0.00043499,18]
[349142414,1736987453708,-500.0,0.00043499,18]
[349142415,1736987453717,-500.0,0.00043499,18]
[349142416,1736987453727,-500.0,0.00043499,18]
[349142417,1736987453736,-500.0,0.00043499,18]
[349142418,1736987453746,-500.0,0.00043499,18]
[349142419,1736987453756,-500.0,0.00043499,18]
[349142420,1736987453767,-334.09,0.00043499,18]
[349142421,1736987453777,-500.0,0.00043499,18]
[349142422,1736987453787,-500.0,0.00043499,18]
[349142423,1736987453796,-500.0,0.00043499,18]
[349142424,1736987453805,-500.0,0.00043499,18]
[349142425,1736987453815,-500.0,0.00043499,18]
[349142426,1736987453824,-500.0,0.00043499,18]
[349142427,1736987453834,-237.86,0.00043499,18]
[349142428,1736987453843,-1646.06055,0.00043499,19]
[349142429,1736987453863,-500.0,0.00043499,18]
[349142430,1736987453873,-500.0,0.00043499,18]
[349142431,1736987453883,-500.0,0.00043499,18]
[349142432,1736987453892,-217.38,0.00043499,18]
[349142433,1736987453902,-500.0,0.00043499,18]
[349142434,1736987453911,-259.65,0.00043499,18]
[349142435,1736987453920,-500.0,0.00043499,18]
[349142436,1736987453929,-500.0,0.00043499,18]
[349142437,1736987453939,-500.0,0.00043499,18]
[349142438,1736987453949,-500.0,0.00043499,18]
[349142439,1736987453958,-500.0,0.00043499,18]
[349142440,1736987453967,-500.0,0.00043499,18]
[349142441,1736987453977,-500.0,0.00043499,18]
[349142442,1736987453986,-500.0,0.00043499,18]
[349142443,1736987453996,-500.0,0.00043499,18]
[349142444,1736987454005,-500.0,0.00043499,18]
[349142445,1736987454014,-500.0,0.00043499,18]
[349142446,1736987454023,-290.88,0.00043499,18]
[349142447,1736987454033,-500.0,0.00043499,18]
[349142448,1736987454043,-500.0,0.00043499,18]
[349142449,1736987454052,-500.0,0.00043499,18]
[349142450,1736987454061,-500.0,0.00043499,18]
[349142451,1736987454071,-500.0,0.00043499,18]
[349142452,1736987454083,-500.0,0.00043499,18]
[349142453,1736987454093,-500.0,0.00043499,18]
[349142454,1736987454104,-464.24,0.00043499,18]
[349142455,1736987454117,-500.0,0.00043499,18]
[349142456,1736987454126,-500.0,0.00043499,18]
[349142457,1736987454136,-500.0,0.00043499,18]
[349142458,1736987454145,-500.0,0.00043499,18]
[349142459,1736987454154,-500.0,0.00043499,18]
[349142460,1736987454164,-500.0,0.00043499,18]
[349142461,1736987454173,-500.0,0.00043499,18]
[349142462,1736987454183,-500.0,0.00043499,18]
[349142463,1736987454192,-305.43,0.00043499,18]
[349142464,1736987454202,-500.0,0.00043499,18]
[349142465,1736987454211,-500.0,0.00043499,18]
[349142466,1736987454220,-500.0,0.00043499,18]
[349142467,1736987454230,-500.0,0.00043499,18]
[349142468,1736987454239,-500.0,0.00043499,18]
[349142469,1736987454248,-341.73514639,0.00043499,18]
[349142470,1736987454257,-500.0,0.00043499,18]
[349142471,1736987454267,-500.0,0.00043499,18]
[349142472,1736987454277,-500.0,0.00043499,18]
[349142473,1736987454286,-500.0,0.00043499,18]
[349142474,1736987454295,-500.0,0.00043499,18]
[349142475,1736987454304,-500.0,0.00043499,18]
[349142476,1736987454313,-500.0,0.00043499,18]
[349142477,1736987454322,-500.0,0.00043499,18]
[349142478,1736987454331,-500.0,0.00043499,18]
[349142479,1736987454340,-500.0,0.00043499,18]
[349142480,1736987454349,-500.0,0.00043499,18]
[349142481,1736987454365,-192.91,0.00043499,18]
[349142482,1736987454374,-500.0,0.00043499,18]
[349142483,1736987454383,-500.0,0.00043499,18]
[349142484,1736987454392,-500.0,0.00043499,18]
[349142485,1736987454402,-500.0,0.00043499,18]
[349142486,1736987454411,-565.77,0.00043499,18]
[349142487,1736987454421,-500.0,0.00043499,18]
[349142488,1736987454430,-500.0,0.00043499,18]
[349142489,1736987454440,-271.78,0.00043499,18]
[349142490,1736987454450,-500.0,0.00043499,18]
[349142491,1736987454462,-500.0,0.00043499,18]
[349142492,1736987454472,-500.0,0.00043499,18]
[349142493,1736987454482,-156.6831936,0.00043499,18]
[349142494,1736987454491,-506.35563987,0.00043499,18]
[349142495,1736987454502,-500.0,0.00043499,18]
[349142496,1736987454512,-342.58,0.00043499,18]
[349142497,1736987454521,-500.0,0.00043499,18]
[349142498,1736987454532,-500.0,0.00043499,18]
[349142499,1736987454541,-500.0,0.00043499,18]
[349142500,1736987454552,-500.0,0.00043499,18]
[349142501,1736987454561,-500.0,0.00043499,18]
[349142502,1736987454571,-372.64,0.00043499,18]
[349142503,1736987454580,-500.0,0.00043499,18]
[349142504,1736987454590,-500.0,0.00043499,18]
[349142505,1736987454599,-500.0,0.00043499,18]
[349142506,1736987454613,-500.0,0.00043499,18]
[349142507,1736987454624,-500.0,0.00043499,18]
[349142508,1736987454633,-500.0,0.00043499,18]
[349142509,1736987454646,-500.0,0.00043499,18]
[349142510,1736987454655,-500.0,0.00043499,18]
[349142511,1736987454665,-500.0,0.00043499,18]
[349142512,1736987454674,-160.83167524,0.00043499,18]
[349142513,1736987454684,-500.0,0.00043499,18]
[349142514,1736987454693,-500.0,0.00043499,18]
[349142515,1736987454703,-500.0,0.00043499,18]
[349142516,1736987454712,-500.0,0.00043499,18]
[349142517,1736987454722,-497.89,0.00043499,18]
[349142518,1736987454731,-500.0,0.00043499,18]
[349142519,1736987454740,-562.84,0.00043499,18]
[349142520,1736987454750,-500.0,0.00043499,18]
[349142521,1736987454759,-500.0,0.00043499,18]
[349142522,1736987454768,-500.0,0.00043499,18]
[349142523,1736987454778,-376.59,0.00043499,18]
[349142524,1736987454787,-433.48,0.00043499,18]
[349142525,1736987454797,-500.0,0.00043499,18]
[349142526,1736987454806,-531.26417502,0.00043499,18]
[349142527,1736987454815,-500.0,0.00043499,18]
[349142528,1736987454826,-202.47,0.00043499,18]
[349142529,1736987454835,-500.0,0.00043499,18]
[349142530,1736987454844,-591.52,0.00043499,18]
[349142531,1736987454855,-500.0,0.00043499,18]
[349142532,1736987454867,-223.12,0.00043499,18]
[349142533,1736987454876,-500.0,0.00043499,18]
[349142534,1736987454885,-500.0,0.00043499,18]
[349142535,1736987454895,-495.15809844,0.00043499,18]
[349142536,1736987454904,-249.15595852,0.00043499,18]
[349142537,1736987454914,-500.0,0.00043499,18]
[349142538,1736987454923,-500.0,0.00043499,18]
[349142539,1736987454932,-500.0,0.00043499,18]
[349142540,1736987454942,-500.0,0.00043499,18]
[349142541,1736987454951,-582.79,0.00043499,18]
[349142542,1736987454960,-500.0,0.00043499,18]
[349142543,1736987454970,-500.0,0.00043499,18]
[349142544,1736987454980,-500.0,0.00043499,18]
[349142545,1736987454989,-500.0,0.00043499,18]
[349142546,1736987454998,-500.0,0.00043499,18]
[349142547,1736987455008,-500.0,0.00043499,18]
[349142548,1736987455017,-243.58,0.00043499,18]
[349142549,1736987455026,-353.89601155,0.00043499,18]
[349142550,1736987455035,-174.779884,0.00043499,18]
[349142551,1736987455045,-174.779884,0.00043499,18]
[349142552,1736987455055,-174.779884,0.00043499,18]
[349142553,1736987455064,-500.0,0.00043499,18]
[349142554,1736987455075,-500.0,0.00043499,18]
[349142555,1736987455084,-500.0,0.00043499,18]
[349142556,1736987455094,-500.0,0.00043499,18]
[349142557,1736987455104,-500.0,0.00043499,18]
[349142558,1736987455117,-500.0,0.00043499,18]
[349142559,1736987455127,-500.0,0.00043499,18]
[349142560,1736987455136,-500.0,0.00043499,18]
[349142561,1736987455146,-500.0,0.00043499,18]
[349142562,1736987455155,-217.25600986,0.00043499,18]
[349142563,1736987455165,-500.0,0.00043499,18]
[349142564,1736987455174,-500.0,0.00043499,18]
[349142565,1736987455183,-500.0,0.00043499,18]
[349142566,1736987455193,-241.9,0.00043499,18]
[349142567,1736987455203,-500.0,0.00043499,18]
[349142568,1736987455212,-500.0,0.00043499,18]
[349142569,1736987455222,-500.0,0.00043499,18]
[349142570,1736987455231,-500.0,0.00043499,18]
[349142571,1736987455240,-500.0,0.00043499,18]
[349142572,1736987455249,-500.0,0.00043499,18]
[349142573,1736987455258,-500.0,0.00043499,18]
[349142574,1736987455267,-500.0,0.00043499,18]
[349142575,1736987455277,-500.0,0.00043499,18]
[349142576,1736987455286,-500.0,0.00043499,18]
[349142577,1736987455295,-500.0,0.00043499,18]
[349142578,1736987455304,-500.0,0.00043499,18]
[349142579,1736987455313,-500.0,0.00043499,18]
[349142580,1736987455323,-500.0,0.00043499,18]
[349142581,1736987455332,-500.0,0.00043499,18]
[349142582,1736987455341,-500.0,0.00043499,18]
[349142583,1736987455351,-500.0,0.00043499,18]
[349142584,1736987455369,-196.21,0.00043499,18]
[349142585,1736987455379,-500.0,0.00043499,18]
[349142586,1736987455388,-500.0,0.00043499,18]
[349142587,1736987455398,-500.0,0.00043499,18]
[349142588,1736987455407,-500.0,0.00043499,18]
[349142589,1736987455417,-500.0,0.00043499,18]
[349142590,1736987455428,-578.97,0.00043499,18]
[349142591,1736987455439,-98405.63450025,0.000435,37]
[349142592,1736987455451,-773.91151133,0.000435,2]
[349142593,1736987455462,-500.0,0.000435,31]
[349142594,1736987455471,-102612.68788924,0.000435,31]
[349142595,1736987455490,-251.0570492,0.000435,31]
[349142596,1736987455501,-19591.55653594,0.000435,31]
[349142597,1736987455513,-2734.9,0.000435,31]
[349142598,1736987455525,-2010.44552096,0.000435,31]
[349142599,1736987455536,-61220.92629919,0.000435,31]
[349142600,1736987455549,-4869.22557488,0.000435,31]
[349142601,1736987455560,-13475.09174856,0.000435,31]
[349142602,1736987455572,-26044.87827141,0.000435,31]
[349142603,1736987455586,-2027.59999975,0.000435,31]
[349142604,1736987455624,-179.558549,0.00043013,18]
[349142606,1736987455634,-153.0,0.00043391,31]
[349142607,1736987455643,-7282.187431,0.000435,31]
[349142608,1736987455655,-6109.42674,0.000435,31]
[349142609,1736987455666,-373.46775991,0.000435,31]
[349142610,1736987455678,-25342.68320924,0.000435,31]
[349142611,1736987455689,-3977.98386532,0.000435,31]
[349142612,1736987455701,-35990.7790544,0.000435,31]
[349142613,1736987455713,-7249.0036028,0.000435,31]
[349142614,1736987455740,-800.0,0.000435,31]
[349142615,1736987455751,-957.40000005,0.000435,31]
[349142616,1736987455835,-179.558549,0.00043499,18]
[349142617,1736987455844,-1531.491451,0.000435,31]
[349142618,1736987455857,-616.0,0.000435,31]
[349142619,1736987455870,-1014.65,0.000435,31]
[349142625,1736988368508,235.0,0.000235,120]
[349142642,1736988631731,-155.0,0.00010136,2]
[349142643,1736988631743,-160.45,0.00010137,2]
[349142644,1736988631753,-234.0,0.00034547,10]
[349142645,1736988631765,-150.0,0.00034548,10]
[349142646,1736988631775,-241.0,0.00041045,30]
[349142647,1736988631789,-1944.90611507,0.00041045,2]
[349142648,1736988631801,-15547.56340326,0.00041045,30]
[349142649,1736988631814,-1529.56798224,0.00041045,30]
[349142650,1736988631828,-1735.94,0.00041588,2]
[349142651,1736988631837,-733.88,0.00041637,120]
[349142652,1736988631849,-250.0,0.0004174,120]
[349142653,1736988631859,-23900.0,0.00041869,2]
[349142654,1736988631869,-1000.0,0.00041895,2]
[349142655,1736988631879,-5778.45,0.00041895,15]
[349142656,1736988631889,-1500.0,0.00041963,2]
[349142657,1736988631900,-1379.42,0.00041963,2]
[349142658,1736988631910,-299.99,0.00041963,120]
[349142659,1736988631919,-7420.32,0.00041963,30]
[349142660,1736988631929,-250.0,0.00041991,2]
[349142661,1736988631939,-6804.02,0.00041991,2]
[349142662,1736988631949,-150.99,0.00041991,2]
[349142663,1736988631958,-4949.367,0.00042,35]
[349142664,1736988631968,-344.16,0.00042055,2]
[349142665,1736988631977,-999.99,0.00042055,2]
[349142666,1736988631987,-150.0,0.00042135,4]
[349142667,1736988631997,-11116.2393389,0.00042136,2]
[349142668,1736988632007,-250.0,0.00042136,2]
[349142669,1736988632018,-1980.0,0.00042157,30]
[349142670,1736988632027,-163.39,0.00042387,2]
[349142671,1736988632039,-4685.82639809,0.000425,40]
[349142672,1736988632051,-314.17360191,0.000425,40]
[349142673,1736988632061,-204.24,0.00042523,120]
[349142674,1736988632071,-651.11,0.00042594,2]
[349142675,1736988632081,-438.04,0.00042603,30]
[349142676,1736988632091,-772.39,0.00042603,30]
[349142677,1736988632101,-438.04,0.00042603,30]
[349142678,1736988632111,-438.04,0.00042603,30]
[349142679,1736988632120,-772.39,0.00042603,30]
[349142680,1736988632130,-772.39,0.00042603,30]
[349142681,1736988632139,-772.39,0.00042603,30]
[349142682,1736988632149,-438.04,0.00042603,30]
[349142683,1736988632159,-772.39,0.00042603,30]
[349142684,1736988632169,-438.04,0.00042603,30]
[349142685,1736988632178,-772.39,0.00042603,30]
[349142686,1736988632187,-871.38,0.00042603,30]
[349142687,1736988632197,-150.0,0.00042629,4]
[349142688,1736988632207,-476.8089955,0.00042725,120]
[349142689,1736988632216,-476.8089955,0.00042771,120]
[349142690,1736988632226,-476.8089955,0.00042793,120]
[349142691,1736988632235,-3266.7686,0.000428,110]
[349142692,1736988632245,-5000.0,0.000428,48]
[349142693,1736988632254,-569.0547,0.000428,2]
[349142694,1736988632263,-311.6762,0.00042813,2]
[349142695,1736988632273,-2500.0,0.00042813,2]
[349142696,1736988632282,-3722.3541,0.00042813,2]
[349142697,1736988632295,-5000.0,0.00042813,2]
[349142698,1736988632305,-200.0,0.0004288,120]
[349142699,1736988632314,-476.8089955,0.00042884,120]
[349142700,1736988632325,-1855.607,0.000429,65]
[349142701,1736988632335,-191.674,0.000429,65]
[349142702,1736988632345,-217.7453314,0.000429,36]
[349142703,1736988632354,-156.08928958,0.000429,2]
[349142704,1736988632363,-1269.6446323,0.00042912,2]
[349142705,1736988632373,-141057.98,0.00042913,2]
[349142706,1736988632382,-14744.515,0.00042913,2]
[349142707,1736988632391,-160.08812973,0.00042913,15]
[349142708,1736988632401,-206.34904141,0.00042913,15]
[349142709,1736988632411,-200.0,0.00042921,120]
[349142711,1736988632420,-476.8089955,0.00042993,120]
[349142713,1736988632430,-305.0,0.00043,15]
[349142715,1736988632439,-5000.0,0.00043,50]
[349142717,1736988632448,-169.0,0.00043,31]
[349142719,1736988632457,-16773.83470332,0.00043,120]
[349142720,1736988632466,-5202.37860525,0.00043,120]
[349142722,1736988632475,-170.0,0.00043,31]
[349142724,1736988632485,-169.0,0.00043,31]
[349142726,1736988632495,-300.0,0.00043012,30]
[349142728,1736988632505,-500.0,0.00043013,18]
[349142730,1736988632514,-500.0,0.00043013,18]
[349142732,1736988632524,-500.0,0.00043013,18]
[349142734,1736988632533,-500.0,0.00043013,18]
[349142736,1736988632548,-500.0,0.00043013,18]
[349142738,1736988632558,-500.0,0.00043013,18]
[349142740,1736988632568,-500.0,0.00043013,18]
[349142742,1736988632577,-500.0,0.00043013,18]
[349142743,1736988632587,-500.0,0.00043013,18]
[349142744,1736988632597,-500.0,0.00043013,18]
[349142745,1736988632607,-500.0,0.00043013,18]
[349142746,1736988632617,-500.0,0.00043013,18]
[349142747,1736988632626,-500.0,0.00043013,18]
[349142748,1736988632636,-500.0,0.00043013,18]
[349142749,1736988632645,-500.0,0.00043013,18]
[349142750,1736988632654,-500.0,0.00043013,18]
[349142751,1736988632664,-500.0,0.00043013,18]
[349142752,1736988632673,-500.0,0.00043013,18]
[349142753,1736988632682,-500.0,0.00043013,18]
[349142754,1736988632692,-500.0,0.00043013,14]
[349142755,1736988632702,-500.0,0.00043013,18]
[349142756,1736988632712,-500.0,0.00043013,18]
[349142757,1736988632722,-500.0,0.00043013,18]
[349142758,1736988632731,-500.0,0.00043013,18]
[349142759,1736988632741,-500.0,0.00043013,18]
[349142760,1736988632751,-500.0,0.00043013,18]
[349142761,1736988632760,-500.0,0.00043013,18]
[349142762,1736988632770,-500.0,0.00043013,18]
[349142763,1736988632779,-500.0,0.00043013,18]
[349142764,1736988632793,-500.0,0.00043013,18]
[349142765,1736988632803,-500.0,0.00043013,18]
[349142766,1736988632814,-500.0,0.00043013,18]
[349142767,1736988632827,-500.0,0.00043013,18]
[349142768,1736988632837,-500.0,0.00043013,18]
[349142769,1736988632846,-500.0,0.00043013,18]
[349142770,1736988632855,-509.87957058,0.00043013,18]
[349142771,1736988632867,-500.0,0.00043013,18]
[349142772,1736988632876,-500.0,0.00043013,18]
[349142773,1736988632886,-205.86671854,0.00043013,18]
[349142774,1736988633059,-500.0,0.00043013,18]
[349142775,1736988633074,-500.0,0.00043013,18]
[349142776,1736988633085,-500.0,0.00043013,18]
[349142777,1736988633097,-500.0,0.00043013,18]
[349142778,1736988633107,-500.0,0.00043013,18]
[349142779,1736988633119,-500.0,0.00043013,18]
[349142780,1736988633129,-500.0,0.00043013,18]
[349142781,1736988633140,-500.0,0.00043013,18]
[349142782,1736988633150,-500.0,0.00043013,18]
[349142783,1736988633159,-500.0,0.00043013,18]
[349142784,1736988633169,-229.33942764,0.00043013,18]
[349142785,1736988633179,-451.7588179,0.00043013,18]
[349142786,1736988633189,-500.0,0.00043013,18]
[349142787,1736988633200,-500.0,0.00043013,18]
[349142788,1736988633210,-500.0,0.00043013,18]
[349142789,1736988633221,-500.0,0.00043013,18]
[349142790,1736988633232,-500.0,0.00043013,18]
[349142791,1736988633242,-500.0,0.00043013,18]
[349142792,1736988633252,-500.0,0.00043013,18]
[349142793,1736988633262,-500.0,0.00043013,18]
[349142794,1736988633272,-500.0,0.00043013,18]
[349142795,1736988633282,-500.0,0.00043013,18]
[349142796,1736988633301,-500.0,0.00043013,18]
[349142797,1736988633313,-500.0,0.00043013,18]
[349142798,1736988633325,-500.0,0.00043013,18]
[349142799,1736988633336,-500.0,0.00043013,18]
[349142800,1736988633348,-288.53397082,0.00043013,18]
[349142801,1736988633359,-500.0,0.00043013,18]
[349142802,1736988633369,-500.0,0.00043013,18]
[349142803,1736988633379,-500.0,0.00043013,18]
[349142804,1736988633388,-500.0,0.00043013,18]
[349142805,1736988633399,-500.0,0.00043013,18]
[349142806,1736988633409,-423.73554934,0.00043013,18]
[349142807,1736988633419,-500.0,0.00043013,18]
[349142808,1736988633429,-500.0,0.00043013,18]
[349142809,1736988633439,-500.0,0.00043013,18]
[349142810,1736988633450,-411.65730734,0.00043013,18]
[349142811,1736988633460,-500.0,0.00043013,18]
[349142812,1736988633471,-500.0,0.00043013,18]
[349142813,1736988633480,-531.1845967,0.00043013,18]
[349142814,1736988633490,-500.0,0.00043013,18]
[349142815,1736988633500,-500.0,0.00043013,18]
[349142816,1736988633510,-500.0,0.00043013,18]
[349142817,1736988633520,-500.0,0.00043013,18]
[349142818,1736988633530,-543.39909376,0.00043013,18]
[349142819,1736988633548,-500.0,0.00043013,18]
[349142820,1736988633557,-500.0,0.00043013,18]
[349142821,1736988633566,-500.0,0.00043013,18]
[349142822,1736988633576,-500.0,0.00043013,18]
[349142823,1736988633586,-500.0,0.00043013,18]
[349142824,1736988633595,-500.0,0.00043013,18]
[349142825,1736988633605,-500.0,0.00043013,18]
[349142826,1736988633615,-500.0,0.00043013,18]
[349142827,1736988633625,-500.0,0.00043013,18]
[349142828,1736988633635,-209.61999717,0.00043013,18]
[349142829,1736988633644,-500.0,0.00043013,18]
[349142830,1736988633654,-257.2749541,0.00043013,18]
[349142831,1736988633664,-523.94884573,0.00043013,18]
[349142832,1736988633673,-500.0,0.00043013,18]
[349142833,1736988633682,-500.0,0.00043013,18]
[349142834,1736988633692,-500.0,0.00043013,18]
[349142835,1736988633702,-500.0,0.00043013,18]
[349142836,1736988633711,-500.0,0.00043013,18]
[349142837,1736988633721,-500.0,0.00043013,18]
[349142838,1736988633731,-500.0,0.00043013,18]
[349142839,1736988633741,-500.0,0.00043013,18]
[349142840,1736988633751,-500.0,0.00043013,18]
[349142841,1736988633761,-500.0,0.00043013,18]
[349142842,1736988633771,-500.0,0.00043013,18]
[349142843,1736988633781,-500.0,0.00043013,18]
[349142844,1736988633792,-500.0,0.00043013,18]
[349142845,1736988633802,-500.0,0.00043013,18]
[349142846,1736988633814,-500.0,0.00043013,18]
[349142847,1736988633826,-500.0,0.00043013,18]
[349142848,1736988633836,-500.0,0.00043013,18]
[349142849,1736988633845,-500.0,0.00043013,18]
[349142850,1736988633855,-500.0,0.00043013,18]
[349142851,1736988633867,-196.32445441,0.00043013,18]
[349142852,1736988633876,-500.0,0.00043013,18]
[349142853,1736988633886,-500.0,0.00043013,18]
[349142854,1736988633896,-500.0,0.00043013,18]
[349142855,1736988633906,-500.0,0.00043013,18]
[349142856,1736988633917,-500.0,0.00043013,18]
[349142857,1736988633926,-500.0,0.00043013,18]
[349142858,1736988633936,-500.0,0.00043013,18]
[349142859,1736988633945,-500.0,0.00043013,18]
[349142860,1736988633955,-500.0,0.00043013,18]
[349142861,1736988633965,-500.0,0.00043013,18]
[349142862,1736988633975,-500.0,0.00043013,18]
[349142863,1736988633984,-500.0,0.00043013,18]
[349142864,1736988633994,-500.0,0.00043013,18]
[349142865,1736988634004,-500.0,0.00043013,18]
[349142866,1736988634013,-500.0,0.00043013,18]
[349142867,1736988634023,-500.0,0.00043013,18]
[349142868,1736988634034,-500.0,0.00043013,18]
[349142869,1736988634046,-500.0,0.00043013,18]
[349142870,1736988634056,-500.0,0.00043013,18]
[349142871,1736988634066,-500.0,0.00043013,18]
[349142872,1736988634077,-500.0,0.00043013,18]
[349142873,1736988634086,-500.0,0.00043013,18]